bitfinex-derivatives/quotes_SOLF0:USTF0_20241105
["timestamp","ask_amount","ask_price","bid_price","bid_amount"]
[1730836413705,1.3605,165.6,165.45,37.66901439]
[1730836413706,37.66901439,165.59,165.45,37.66901439]
[1730836414099,3.0199,165.56,165.5,3.0209]
[1730836414294,1.3605,165.6,165.48,37.66901439]
[1730836414494,37.66901439,165.64,165.51,37.66901439]
[1730836414703,37.66901439,165.64,165.52,1.2928]
[1730836414897,3.0191,165.61,165.55,3.0199]
[1730836415201,37.66901439,165.64,165.55,3.0199]
[1730836415403,3.0191,165.6,165.55,3.0199]
[1730836415704,37.66901439,165.64,165.55,3.0199]
[1730836417098,1.3605,165.66,165.55,3.0199]
[1730836417302,10.3212,165.71,165.56,37.66901439]
[1730836417303,37.66901439,165.69,165.56,37.66901439]
[1730836417499,3.0178,165.68,165.59,37.66901439]
[1730836417705,37.66901439,165.74,165.64,3.0183]
[1730836418003,39.93930547,165.76,165.64,37.66901439]
[1730836418209,39.93930547,165.76,165.66,3.0179]
[1730836418210,3.0168,165.73,165.66,3.0179]
[1730836418511,37.66901439,165.76,165.65,1.2881]
[1730836418698,3.0168,165.73,165.65,4.3063]
[1730836418899,37.66901439,165.76,165.65,4.3063]
[1730836418900,37.66901439,165.76,165.65,1.2881]
[1730836419108,39.02641439,165.79,165.65,1.2881]
[1730836419402,39.02641439,165.79,165.66,3.018]
[1730836419602,39.02641439,165.79,165.65,1.2881]
[1730836420407,37.66901439,165.71,165.59,37.66901439]
[1730836420608,3.018,165.67,165.6,3.0191]
[1730836420807,37.66901439,165.68,165.6,3.0191]
[1730836421013,37.66901439,165.68,165.58,8.68]
[1730836421310,37.66901439,165.66,165.56,1.3509]
[1730836421508,37.66901439,165.68,165.56,1.3509]
[1730836422909,37.66901439,165.68,165.56,39.01991439]
[1730836423110,37.66901439,165.71,165.59,37.66901439]
[1730836423306,37.66901439,165.74,165.62,37.66901439]
[1730836423509,37.66901439,165.77,165.62,37.66901439]
[1730836423710,37.66901439,165.77,165.65,37.66901439]
[1730836423910,3.0168,165.73,165.68,3.0175]
[1730836424216,1.3574,165.79,165.67,37.66901439]
[1730836424411,3.0164,165.76,165.67,3.0177]
[1730836424611,39.02641439,165.79,165.66,1.2998]
[1730836425208,39.02641439,165.79,165.69,3.0173]
[1730836425407,39.02641439,165.79,165.66,1.2998]
[1730836425610,37.66901439,165.76,165.66,1.2998]
[1730836425811,3.0172,165.71,165.66,1.2998]
[1730836426020,37.66901439,165.76,165.66,1.2998]
[1730836426318,3.0168,165.73,165.66,1.2998]
[1730836427213,37.66901439,165.79,165.66,1.2998]
[1730836427518,1.3029,165.8,165.7,37.66901439]
[1730836427914,1.3976,165.84,165.7,37.66901439]
[1730836428116,3.0153,165.82,165.72,37.66901439]
[1730836428312,37.66901439,165.87,165.73,1.3623]
[1730836428812,37.66901439,165.87,165.76,3.0161]
[1730836429819,37.66901439,165.87,165.73,1.3623]
[1730836430117,37.66901439,165.87,165.76,3.0162]
[1730836430515,37.66901439,165.84,165.73,1.3623]
[1730836430821,37.66901439,165.84,165.72,3.0168]
[1730836431117,37.66901439,165.84,165.73,3.0167]
[1730836431414,37.66901439,165.84,165.71,8.66]
[1730836432325,37.66901439,165.82,165.71,8.66]
[1730836432621,37.66901439,165.82,165.67,47.27681439]
[1730836432823,37.66901439,165.82,165.7,3.0173]
[1730836433014,37.66901439,165.82,165.67,47.27681439]
[1730836433320,37.66901439,165.82,165.71,3.0171]
[1730836433521,37.66901439,165.82,165.67,47.27681439]
[1730836433722,37.66901439,165.84,165.7,37.66901439]
[1730836433925,1.318,165.86,165.7,37.66901439]
[1730836434218,37.66901439,165.84,165.7,37.66901439]
[1730836434415,1.318,165.86,165.72,37.66901439]
[1730836435224,1.318,165.86,165.77,3.0159]
[1730836435823,1.318,165.86,165.76,3.0162]
[1730836436023,1.318,165.86,165.72,37.66901439]
[1730836436429,1.318,165.86,165.77,3.0159]
[1730836436720,1.318,165.86,165.76,37.66901439]
[1730836436721,1.376,165.89,165.76,37.66901439]
[1730836436923,1.376,165.89,165.77,1.3847]
[1730836437311,1.376,165.89,165.79,37.66901439]
[1730836437730,0.22615,165.91,165.79,37.66901439]
[1730836438119,37.66901439,165.9,165.79,37.66901439]
[1730836438427,37.66901439,165.9,165.77,1.3847]
[1730836439623,37.66901439,165.88,165.77,1.3847]
[1730836441730,37.66901439,165.9,165.77,1.3847]
[1730836441918,0.22615,165.91,165.78,37.66901439]
[1730836443320,0.22615,165.91,165.77,1.3847]
[1730836443321,37.66901439,165.87,165.77,1.3847]
[1730836443922,37.66901439,165.9,165.77,1.3847]
[1730836444523,0.22615,165.91,165.78,37.66901439]
[1730836444723,37.66901439,165.87,165.77,1.3847]
[1730836445824,37.66901439,165.9,165.77,39.05371439]
[1730836446024,37.66901439,165.9,165.79,3.0156]
[1730836446524,0.22615,165.91,165.77,39.05371439]
[1730836446730,0.22615,165.91,165.8,3.0155]
[1730836446929,37.66901439,165.9,165.77,39.05371439]
[1730836447620,37.66901439,165.9,165.8,3.0154]
[1730836448431,0.22615,165.91,165.81,3.0151]
[1730836448830,1.3929,165.92,165.81,3.0151]
[1730836449535,24.54543319,165.92,165.81,3.0151]
[1730836449729,24.54543319,165.92,165.82,3.0151]
[1730836450836,1.3929,165.92,165.8,23.15253319]
[1730836451537,24.54543319,165.92,165.78,23.15253319]
[1730836451931,24.54543319,165.92,165.79,3.0156]
[1730836452239,23.15253319,165.89,165.77,1.3847]
[1730836453131,23.15253319,165.84,165.73,1.3463]
[1730836453440,1.2736,165.83,165.73,1.3463]
[1730836453938,30.77253319,165.89,165.75,23.15253319]
[1730836454234,1.2736,165.88,165.78,3.0157]
[1730836454438,24.42613319,165.88,165.74,23.15253319]
[1730836454845,24.42613319,165.88,165.76,3.0161]
[1730836455839,24.42613319,165.88,165.74,23.15253319]
[1730836456438,24.42613319,165.88,165.76,3.0162]
[1730836456635,24.42613319,165.88,165.74,23.15253319]
[1730836456636,23.15253319,165.83,165.69,30.77253319]
[1730836456836,23.15253319,165.83,165.7,1.10843466]
[1730836457042,23.15253319,165.83,165.73,3.0167]
[1730836457235,23.15253319,165.83,165.69,24.46093319]
[1730836457434,1.2598,165.82,165.69,24.46093319]
[1730836457645,3.0164,165.76,165.71,3.0171]
[1730836458235,3.0164,165.76,165.69,24.46093319]
[1730836458430,1.2598,165.82,165.69,24.46093319]
[1730836458631,1.2598,165.82,165.72,23.15253319]
[1730836459441,1.2598,165.82,165.69,1.3084]
[1730836459442,1.2598,165.82,165.69,24.46093319]
[1730836459644,3.0165,165.75,165.7,3.0172]
[1730836460040,1.2598,165.82,165.71,23.15253319]
[1730836460341,1.2598,165.82,165.72,3.0169]
[1730836460738,3.0161,165.77,165.72,3.0169]
[1730836461845,3.0161,165.77,165.73,3.0167]
[1730836462947,3.0159,165.78,165.73,3.0167]
[1730836463138,24.42613319,165.88,165.74,23.15253319]
[1730836463339,1.3904,165.87,165.74,23.15253319]
[1730836463536,3.0156,165.8,165.74,23.15253319]
[1730836463745,1.3904,165.87,165.77,3.0159]
[1730836463942,1.3904,165.87,165.76,23.15253319]
[1730836464143,1.2736,165.88,165.79,23.15253319]
[1730836464344,11.10440324,165.93,165.79,23.15253319]
[1730836464647,12.46700324,165.93,165.79,23.15253319]
[1730836464843,12.46700324,165.93,165.81,3.0151]
[1730836465245,3.0146,165.85,165.81,3.0151]
[1730836465637,23.15253319,165.88,165.77,1.3518]
[1730836465842,1.3626,165.93,165.75,7.3]
[1730836465843,23.15253319,165.86,165.75,7.3]
[1730836466039,23.15253319,165.86,165.72,1.305]
[1730836466345,3.0162,165.77,165.72,1.305]
[1730836466852,23.15253319,165.83,165.72,1.305]
[1730836467045,3.0168,165.73,165.69,23.15253319]
[1730836467244,1.3848,165.82,165.69,23.15253319]
[1730836467444,1.3848,165.82,165.7,4.3083]
[1730836468552,1.3848,165.82,165.7,1.2912]
[1730836468849,1.3848,165.82,165.72,23.15253319]
[1730836469656,2.413,165.76,165.72,25.56603319]
[1730836470551,1.3848,165.82,165.72,23.15253319]
[1730836470746,24.53733319,165.82,165.7,1.2912]
[1730836470948,24.53733319,165.82,165.68,1.3448]
[1730836471253,23.15253319,165.79,165.66,23.15253319]
[1730836471450,1.2799,165.78,165.66,23.15253319]
[1730836471948,23.15253319,165.76,165.59,1.2708]
[1730836472154,23.15253319,165.74,165.6,1.2678]
[1730836472347,1.2799,165.78,165.56,30.13253319]
[1730836472348,23.15253319,165.71,165.56,30.13253319]
[1730836472547,23.15253319,165.71,165.56,31.40033319]
[1730836473059,23.15253319,165.71,165.58,23.15253319]
[1730836473557,37.67977645,165.7,165.57,2.4156]
[1730836473855,37.67977645,165.67,165.52,37.67977645]
[1730836474156,37.67977645,165.67,165.52,41.43247645]
[1730836474351,1.3434,165.69,165.52,41.43247645]
[1730836474551,2.4158,165.57,165.52,39.01607645]
[1730836474756,1.3434,165.69,165.52,1.3363]
[1730836474757,37.67977645,165.62,165.52,1.3363]
[1730836474943,1.2753,165.61,165.5,33.23363943]
[1730836475343,1.3863,165.6,165.5,33.23363943]
[1730836475751,2.416,165.56,165.5,33.23363943]
[1730836475956,6.98,165.66,165.48,2.5313]
[1730836475957,37.67977645,165.68,165.52,37.67977645]
[1730836476251,1.3824,165.68,165.55,37.67977645]
[1730836476654,1.3824,165.68,165.56,1.2654]
[1730836477459,39.06217645,165.68,165.56,1.2654]
[1730836477650,2.4153,165.6,165.56,1.2654]
[1730836478265,1.3863,165.67,165.56,1.2654]
[1730836478458,2.4151,165.62,165.56,3.6812]
[1730836478756,1.3863,165.67,165.56,3.6812]
[1730836478961,2.4151,165.62,165.56,3.6812]
[1730836479354,1.3863,165.67,165.57,2.4157]
[1730836479555,2.415,165.63,165.57,2.4157]
[1730836479957,1.3863,165.67,165.48,2.5313]
[1730836479958,37.67977645,165.62,165.48,2.5313]
[1730836480163,37.67977645,165.59,165.49,1.3646]
[1730836480558,2.4159,165.56,165.49,1.3646]
[1730836480758,37.67977645,165.59,165.49,1.3646]
[1730836481759,2.4162,165.54,165.49,1.3646]
[1730836481950,37.67977645,165.62,165.49,1.3646]
[1730836483060,2.4163,165.53,165.49,1.3646]
[1730836483358,2.4163,165.53,165.31,345.96645447]
[1730836483359,37.67977645,165.5,165.27,2.38731888]
[1730836483559,37.67977645,165.5,165.36,1.3128]
[1730836484464,37.67977645,165.47,165.36,1.3128]
[1730836484762,2.4185,165.38,165.36,1.3128]
[1730836484961,37.67977645,165.41,165.32,2.7131]
[1730836485766,2.4187,165.37,165.32,2.7131]
[1730836485964,37.67977645,165.39,165.3,1.3319]
[1730836487165,37.67977645,165.42,165.3,1.3319]
[1730836487567,1.2914,165.43,165.31,37.67977645]
[1730836487767,1.2914,165.43,165.31,38.95387645]
[1730836488163,2.4179,165.43,165.36,2.4187]
[1730836488366,37.67977645,165.45,165.31,45.63387645]
[1730836488763,2.4181,165.42,165.35,2.4189]
[1730836488964,37.67977645,165.45,165.31,7.9541]
[1730836489361,2.4185,165.38,165.32,2.4194]
[1730836489966,2.4184,165.39,165.31,9.0995]
[1730836490266,37.67977645,165.42,165.31,9.0995]
[1730836490468,2.4181,165.41,165.33,2.4191]
[1730836490666,37.67977645,165.45,165.31,6.68]
[1730836491268,37.67977645,165.45,165.36,2.4188]
[1730836491462,1.3237,165.49,165.36,37.67977645]
[1730836491868,37.67977645,165.5,165.36,37.67977645]
[1730836492069,37.67977645,165.47,165.33,37.67977645]
[1730836492269,39.04597645,165.52,165.33,37.67977645]
[1730836492270,37.67977645,165.45,165.33,37.67977645]
[1730836492471,2.4181,165.41,165.35,2.4189]
[1730836494063,2.4181,165.41,165.36,2.4188]
[1730836494570,18.11,165.6,165.37,37.67977645]
[1730836494774,18.11,165.6,165.35,37.67977645]
[1730836494775,37.67977645,165.51,165.38,37.67977645]
[1730836494966,2.0512,165.58,165.41,37.67977645]
[1730836495170,37.67977645,165.56,165.42,1.2922]
[1730836495475,37.67977645,165.53,165.42,1.2922]
[1730836495677,2.4171,165.48,165.42,3.71]
[1730836495974,37.67977645,165.56,165.42,1.2922]
[1730836496172,2.0512,165.58,165.43,37.67977645]
[1730836496173,2.4165,165.52,165.43,37.67977645]
[1730836496877,2.4167,165.51,165.43,37.67977645]
[1730836497673,37.67977645,165.55,165.42,1.2922]
[1730836498377,2.4172,165.48,165.43,2.4178]
[1730836498773,37.67977645,165.52,165.42,1.2922]
[1730836498969,37.67977645,165.5,165.35,37.67977645]
[1730836499173,1.3431,165.49,165.35,44.03977645]
[1730836499476,1.3431,165.49,165.37,2.4186]
[1730836499771,37.67977645,165.47,165.35,2.4189]
[1730836500078,37.67977645,165.45,165.35,2.4189]
[1730836500269,37.67977645,165.45,165.35,2.4188]
[1730836500573,0.7385,165.48,165.35,37.67977645]
[1730836500787,1.3431,165.49,165.35,37.67977645]
[1730836500983,1.3431,165.49,165.38,37.67977645]
[1730836501275,0.7385,165.53,165.41,37.67977645]
[1730836501470,1.3438,165.54,165.41,37.67977645]
[1730836501878,0.7385,165.58,165.44,37.67977645]
[1730836502083,6.36,165.6,165.47,37.67977645]
[1730836502379,37.67977645,165.63,165.49,37.67977645]
[1730836502582,37.67977645,165.63,165.48,10.3347]
[1730836502877,37.67977645,165.63,165.5,37.67977645]
[1730836503279,37.67977645,165.63,165.51,2.4166]
[1730836503780,37.67977645,165.6,165.48,10.3347]
[1730836504168,37.67977645,165.6,165.48,2.708]
[1730836504371,37.67977645,165.6,165.48,5.125]
[1730836504571,37.67977645,165.6,165.48,2.708]
[1730836504772,2.4162,165.55,165.49,2.4169]
[1730836505081,37.67977645,165.6,165.49,2.4169]
[1730836505280,37.67977645,165.6,165.48,2.708]
[1730836506177,1.3438,165.64,165.49,37.67977645]
[1730836506370,1.3438,165.64,165.48,2.708]
[1730836506371,1.3438,165.64,165.53,37.67977645]
[1730836506576,2.4151,165.62,165.53,37.67977645]
[1730836506975,1.3438,165.64,165.56,2.4158]
[1730836506976,2.4152,165.61,165.56,2.4158]
[1730836507283,1.3438,165.64,165.56,37.67977645]
[1730836507579,0.3286,165.68,165.57,1.2777]
[1730836507786,1.5888,165.68,165.57,1.2777]
[1730836508881,37.67977645,165.66,165.51,6.36]
[1730836509274,37.67977645,165.63,165.51,6.36]
[1730836509472,37.67977645,165.6,165.49,1.2777]
[1730836509676,37.67977645,165.63,165.5,37.67977645]
[1730836509876,2.4153,165.6,165.55,2.416]
[1730836510377,2.4153,165.6,165.53,37.67977645]
[1730836510582,1.3106,165.67,165.51,1.2923]
[1730836510583,37.67977645,165.64,165.51,1.2923]
[1730836510779,37.67977645,165.61,165.49,1.2777]
[1730836510981,2.4167,165.5,165.49,1.2777]
[1730836511180,37.67977645,165.59,165.49,1.2777]
[1730836511391,1.3106,165.58,165.44,7.6523]
[1730836511585,1.3106,165.58,165.45,3.7715]
[1730836511784,1.3106,165.58,165.45,1.3541]
[1730836511981,37.67977645,165.55,165.45,1.3541]
[1730836512277,1.3106,165.58,165.38,37.67977645]
[1730836512278,37.67977645,165.53,165.38,37.67977645]
[1730836512478,37.67977645,165.53,165.39,1.3541]
[1730836512877,2.4172,165.48,165.42,2.4179]
[1730836513187,2.4172,165.48,165.41,37.67977645]
[1730836513586,6.36,165.56,165.45,2.4175]
[1730836513587,44.03977645,165.56,165.45,2.4175]
[1730836513787,44.03977645,165.56,165.43,37.67977645]
[1730836514390,6.36,165.56,165.43,37.67977645]
[1730836514589,1.3106,165.58,165.46,37.67977645]
[1730836514884,2.4163,165.54,165.48,2.417]
[1730836515083,2.4163,165.54,165.48,3.7569]
[1730836515287,2.4163,165.54,165.48,1.3399]
[1730836515490,38.99037645,165.58,165.48,1.3399]
[1730836515795,38.99037645,165.58,165.43,37.67977645]
[1730836515993,38.99037645,165.58,165.44,1.2939]
[1730836515994,37.67977645,165.55,165.44,1.2939]
[1730836516490,2.4182,165.41,165.32,2.4193]
[1730836516691,37.67977645,165.52,165.16,11.28445698]
[1730836516692,37.67977645,165.43,165.31,1.2939]
[1730836516994,37.67977645,165.43,165.3,2.4197]
[1730836516995,2.4187,165.37,165.3,2.4197]
[1730836517180,1.3022,165.42,165.3,2.4197]
[1730836517485,1.3022,165.42,165.29,37.67977645]
[1730836517691,1.3022,165.42,165.3,2.4195]
[1730836517882,37.67977645,165.4,165.26,1.2939]
[1730836518087,37.67977645,165.4,165.26,38.97367645]
[1730836518287,2.419,165.35,165.26,38.97367645]
[1730836518489,2.419,165.35,165.26,40.35197645]
[1730836518789,37.67977645,165.4,165.26,40.35197645]
[1730836519090,2.4187,165.37,165.28,2.4198]
[1730836519294,37.67977645,165.38,165.26,2.6722]
[1730836519487,2.4187,165.37,165.28,2.4198]
[1730836520081,37.67977645,165.37,165.26,5.0924]
[1730836520281,37.67977645,165.37,165.26,2.6722]
[1730836520781,1.3022,165.42,165.19,2.7514]
[1730836520782,37.67977645,165.32,165.19,2.7514]
[1730836521087,1.2997,165.31,165.2,38.79140123]
[1730836521591,37.67977645,165.34,165.2,38.79140123]
[1730836521592,2.4191,165.34,165.23,37.67977645]
[1730836521795,6.36,165.39,165.26,37.67977645]
[1730836522087,2.419,165.35,165.27,1.317]
[1730836522400,6.36,165.39,165.27,1.317]
[1730836522591,6.36,165.39,165.28,2.42]
[1730836522794,2.3662,165.43,165.29,37.67977645]
[1730836522991,2.3662,165.43,165.3,33.97221879]
[1730836523300,2.3662,165.43,165.28,2.6107]
[1730836523301,2.4187,165.37,165.28,2.6107]
[1730836523494,33.97221879,165.37,165.28,2.6107]
[1730836523694,2.3662,165.43,165.28,1.2968]
[1730836523992,2.4191,165.34,165.28,1.2968]
[1730836524585,2.4188,165.36,165.29,2.4197]
[1730836524785,33.97221879,165.39,165.28,1.2968]
[1730836525494,33.97221879,165.36,165.27,1.317]
[1730836525694,40.33221879,165.39,165.27,1.317]
[1730836526090,33.97221879,165.39,165.27,1.317]
[1730836526290,40.33221879,165.39,165.27,1.317]
[1730836528193,2.4191,165.34,165.27,1.317]
[1730836528590,40.33221879,165.39,165.29,2.4197]
[1730836528591,2.4187,165.37,165.29,2.4197]
[1730836528793,33.97221879,165.39,165.27,1.317]
[1730836529686,33.97221879,165.33,165.2,1.11162478]
[1730836529886,1.342,165.32,165.2,1.11162478]
[1730836530096,1.342,165.32,165.2,2.38652478]
[1730836530491,1.342,165.32,165.2,1.2749]
[1730836530693,7.662,165.32,165.2,1.2749]
[1730836530888,8.399,165.32,165.19,33.97221879]
[1730836531091,8.399,165.32,165.2,1.11163563]
[1730836531400,8.399,165.32,165.19,33.97221879]
[1730836531401,2.4198,165.29,165.23,2.4206]
[1730836531598,8.399,165.32,165.21,33.97221879]
[1730836531797,7.662,165.32,165.21,33.97221879]
[1730836531997,2.4198,165.29,165.23,2.4206]
[1730836532198,7.662,165.32,165.21,33.97221879]
[1730836532898,7.662,165.32,165.24,2.4205]
[1730836533100,7.662,165.32,165.21,33.97221879]
[1730836533499,2.42,165.28,165.23,2.4207]
[1730836533701,41.63421879,165.32,165.16,2.6903]
[1730836533903,2.4206,165.24,165.18,2.4214]
[1730836534297,33.97221879,165.3,165.16,2.6903]
[1730836534298,6.32,165.29,165.16,2.6903]
[1730836534711,2.4206,165.24,165.19,2.4211]
[1730836535005,2.4206,165.24,165.16,2.6903]
[1730836535208,6.32,165.29,165.16,2.6903]
[1730836535402,33.97221879,165.26,165.11,33.97221879]
[1730836535603,33.97221879,165.26,165.14,33.97221879]
[1730836535810,6.32,165.27,165.19,2.4212]
[1730836536199,6.32,165.28,165.14,33.97221879]
[1730836537303,6.32,165.31,165.23,2.4207]
[1730836537505,6.32,165.31,165.16,33.97221879]
[1730836537506,6.32,165.31,165.19,33.97221879]
[1730836537810,6.32,165.31,165.2,2.7121]
[1730836538007,2.4196,165.31,165.2,2.7121]
[1730836538405,1.342,165.32,165.22,33.97221879]
[1730836538606,35.31421879,165.32,165.2,2.7121]
[1730836539506,2.42,165.28,165.23,2.4207]
[1730836539810,35.31421879,165.32,165.2,2.7121]
[1730836540010,2.4199,165.29,165.21,2.4209]
[1730836540199,35.31421879,165.32,165.2,2.7121]
[1730836540706,35.31421879,165.32,165.23,2.4207]
[1730836540707,2.42,165.28,165.23,2.4207]
[1730836540899,35.31421879,165.32,165.2,36.68431879]
[1730836541406,35.31421879,165.32,165.2,2.7121]
[1730836541910,35.31421879,165.32,165.2,36.68431879]
[1730836542899,35.31421879,165.32,165.2,2.7121]
[1730836543105,33.97221879,165.23,165.1,0.26726]
[1730836543304,2.4212,165.2,165.13,2.422]
[1730836543510,33.97221879,165.23,165.11,1.357]
[1730836543812,6.32,165.24,165.11,1.357]
[1730836544011,2.4209,165.22,165.17,2.4216]
[1730836544415,6.32,165.25,165.11,1.357]
[1730836544715,40.59221879,165.27,165.13,33.97221879]
[1730836544900,40.59221879,165.27,165.14,1.11221444]
[1730836545105,40.59221879,165.27,165.13,33.97221879]
[1730836545515,6.62,165.27,165.16,33.97221879]
[1730836545714,2.4206,165.24,165.17,2.4216]
[1730836545905,40.59221879,165.27,165.11,1.357]
[1730836546106,40.59221879,165.27,165.12,1.11211294]
[1730836546301,2.421,165.21,165.16,2.4217]
[1730836546809,2.4212,165.2,165.14,2.4219]
[1730836547008,2.4212,165.2,165.11,1.357]
[1730836547212,40.59221879,165.27,165.12,1.11221357]
[1730836547506,40.59221879,165.27,165.11,1.357]
[1730836547507,33.97221879,165.24,165.14,2.422]
[1730836547707,1.3814,165.23,165.11,1.357]
[1730836548115,1.3814,165.23,165.12,1.11225333]
[1730836548611,3.8022,165.23,165.12,35.08447212]
[1730836548811,3.8022,165.23,165.11,1.357]
[1730836548812,3.8022,165.23,165.13,31.33324309]
[1730836549014,30.22098976,165.27,165.14,3.53415333]
[1730836549015,2.4214,165.19,165.14,3.53415333]
[1730836549206,30.22098976,165.27,165.1,0.26726]
[1730836549207,30.22098976,165.22,165.1,0.26726]
[1730836549407,30.22098976,165.19,165.1,0.26726]
[1730836549612,2.422,165.15,165.1,2.68986]
[1730836549809,30.22098976,165.19,165.1,0.26726]
[1730836550219,2.422,165.14,165.1,2.68976]
[1730836550410,30.22098976,165.19,165.1,2.68976]
[1730836550718,2.4221,165.14,165.1,0.26726]
[1730836551022,30.22098976,165.19,165.1,0.26726]
[1730836551317,2.4219,165.15,165.1,0.26726]
[1730836551814,2.4219,165.15,165.05,1.3114]
[1730836551815,30.22098976,165.13,165.01,2.4238]
[1730836552008,30.22098976,165.1,165.02,1.11282087]
[1730836552209,2.4227,165.1,165.05,2.4233]
[1730836552507,38.23848976,165.12,164.98,30.22098976]
[1730836552714,38.23848976,165.12,164.99,1.11292823]
[1730836552909,31.61848976,165.12,165.07,2.423]
[1730836553114,1.3975,165.12,165.01,30.22098976]
[1730836553326,32.64478976,165.03,164.78,2.39277171]
[1730836553518,30.22098976,165.06,164.9,2.5913]
[1730836553815,30.22098976,165.09,164.94,30.22098976]
[1730836554117,30.22098976,165.06,164.91,1.3745]
[1730836554707,1.3975,165.12,164.96,30.22098976]
[1730836554918,1.3975,165.12,164.91,1.3745]
[1730836554919,3.75641081,165.11,164.98,30.22098976]
[1730836555116,2.4225,165.11,165.02,2.4237]
[1730836555418,30.22098976,165.05,164.99,2.6686]
[1730836555715,30.22098976,165.05,164.93,30.22098976]
[1730836555915,30.22098976,164.97,164.69,3.7753279]
[1730836556115,30.22098976,164.97,164.86,2.426]
[1730836556116,2.4252,164.93,164.86,2.426]
[1730836556419,30.22098976,164.97,164.81,4.0702]
[1730836556618,2.4255,164.91,164.84,2.4264]
[1730836556812,2.4255,164.91,164.81,4.0702]
[1730836556813,30.22098976,164.93,164.81,4.0702]
[1730836557720,6.64,164.99,164.81,4.0702]
[1730836557721,30.22098976,164.9,164.81,4.0702]
[1730836557909,30.22098976,164.96,164.81,4.0702]
[1730836557910,30.22098976,164.87,164.81,1.3979]
[1730836558111,30.22098976,164.87,164.7,30.22098976]
[1730836558320,30.22098976,164.87,164.68,6.64]
[1730836558321,30.22098976,164.87,164.73,30.22098976]
[1730836558714,2.4262,164.86,164.78,2.4272]
[1730836558915,2.4262,164.86,164.73,30.22098976]
[1730836559120,30.22098976,164.87,164.73,30.22098976]
[1730836559310,32.64708976,164.87,164.81,2.4268]
[1730836559512,30.22098976,164.87,164.74,1.289]
[1730836559813,30.22098976,164.87,164.71,2.4282]
[1730836560010,30.22098976,164.87,164.71,30.22098976]
[1730836560216,1.3691,164.9,164.74,30.22098976]
[1730836560217,31.59008976,164.9,164.74,30.22098976]
[1730836560426,31.59008976,164.9,164.75,2.6053]
[1730836560624,31.59008976,164.9,164.76,30.22098976]
[1730836560816,56.46285878,165.5,164.79,30.22098976]
[1730836560817,30.22098976,164.93,164.79,30.22098976]
[1730836561017,30.22098976,164.93,164.87,2.4259]
[1730836561314,30.22098976,164.93,164.76,6.96]
[1730836561315,30.22098976,164.96,164.82,30.22098976]
[1730836561521,1.2842,165.01,164.82,30.22098976]
[1730836561522,6.96,164.98,164.82,30.22098976]
[1730836561829,30.22098976,164.92,164.78,30.22098976]
[1730836562023,30.22098976,164.92,164.76,8.3389]
[1730836562524,30.22098976,164.92,164.87,2.426]
[1730836562726,30.22098976,164.95,164.78,30.22098976]
[1730836562921,30.22098976,164.91,164.78,30.22098976]
[1730836563127,30.22098976,164.91,164.76,8.3389]
[1730836563520,30.22098976,164.88,164.82,2.4266]
[1730836563723,30.22098976,164.95,164.72,0.39997]
[1730836563724,30.22098976,164.83,164.72,0.39997]
[1730836564026,6.96,164.89,164.72,0.39997]
[1730836564027,30.22098976,164.77,164.72,2.82807]
[1730836564218,30.22098976,164.74,164.72,0.39997]
[1730836564822,30.22098976,164.74,164.56,2.5261]
[1730836565023,30.22098976,164.71,164.56,32.74708976]
[1730836565227,30.22098976,164.71,164.56,2.5261]
[1730836565619,30.22098976,164.71,164.56,32.74708976]
[1730836565818,30.22098976,164.74,164.59,30.22098976]
[1730836566331,30.22098976,164.71,164.57,30.22098976]
[1730836567831,30.22098976,164.71,164.64,2.4293]
[1730836568128,30.22098976,164.66,164.56,2.5261]
[1730836568342,30.22098976,164.66,164.59,2.4301]
[1730836568524,30.22098976,164.69,164.56,2.5261]
[1730836568725,30.22098976,164.72,164.56,32.74708976]
[1730836569023,30.22098976,164.74,164.59,30.22098976]
[1730836569331,7.34,164.78,164.56,9.8661]
[1730836569332,30.22098976,164.72,164.56,2.5261]
[1730836569526,30.22098976,164.69,164.56,2.5261]
[1730836569728,30.22098976,164.66,164.56,2.5261]
[1730836569934,30.22098976,164.71,164.62,2.4296]